fUST/lending_fUST_20250701
["ID","MTS","AMOUNT","RATE_DAILY","PERIOD"]
[368732154,1751334640007,-462.86309303,0.00018373,2]
[368732155,1751334640020,-460.0,0.00018373,2]
[368732156,1751334640030,-460.0,0.00018373,2]
[368732157,1751334640040,-460.0,0.00018373,2]
[368732158,1751334640050,-462.26228801,0.00018382,2]
[368732159,1751334640059,-460.0,0.00018382,2]
[368732160,1751334640070,-1003.36114315,0.00018382,2]
[368732161,1751334640080,-463.67088597,0.00018382,2]
[368732162,1751334640090,-510.66740371,0.00018382,2]
[368732163,1751334640100,-581.37486339,0.00018383,2]
[368732164,1751334640111,-460.0,0.00018383,2]
[368732165,1751334640122,-461.75237875,0.00018383,2]
[368732166,1751334640133,-460.0,0.00018383,2]
[368732168,1751334640142,-460.34652607,0.00018383,2]
[368732169,1751334640152,-460.0,0.00018383,2]
[368732170,1751334640163,-461.11888963,0.00018383,2]
[368732171,1751334640172,-461.56569588,0.00018383,2]
[368732172,1751334640183,-461.7450724,0.00018383,2]
[368732173,1751334640193,-461.05741184,0.00018383,2]
[368732174,1751334640202,-460.0,0.00018383,2]
[368732175,1751334640212,-461.4524842,0.00018383,2]
[368732176,1751334640221,-461.8544724,0.00018383,2]
[368732177,1751334640231,-460.0,0.00018383,2]
[368732178,1751334640241,-291.20610717,0.00018383,2]
[368732179,1751334640251,-598.88579814,0.00018383,2]
[368732180,1751334640410,-460.0,0.00018383,2]
[368732181,1751334640421,-461.66580671,0.00018383,2]
[368732182,1751334640431,-461.29798967,0.00018383,2]
[368732183,1751334640441,-461.50828279,0.00018383,2]
[368732184,1751334640451,-461.61061517,0.00018383,2]
[368732185,1751334640461,-461.6091968,0.00018383,2]
[368732186,1751334640471,-462.61172125,0.00018383,2]
[368732187,1751334640482,-460.0,0.00018383,2]
[368732188,1751334640491,-460.0,0.00018383,2]
[368732189,1751334640501,-460.0,0.00018383,2]
[368732190,1751334640511,-462.42298765,0.00018383,2]
[368732191,1751334640522,-460.0,0.00018383,2]
[368732192,1751334640532,-460.51868081,0.00018383,2]
[368732193,1751334640541,-460.22035563,0.00018383,2]
[368732194,1751334640552,-460.0,0.00018383,2]
[368732195,1751334640561,-460.0,0.00018383,2]
[368732196,1751334640571,-460.0,0.00018383,2]
[368732197,1751334640581,-460.0,0.00018383,2]
[368732198,1751334640591,-460.0,0.00018383,2]
[368732199,1751334640601,-460.0,0.00018383,2]
[368732200,1751334640611,-460.0,0.00018383,2]
[368732201,1751334640621,-460.0,0.00018383,2]
[368732202,1751334640631,-462.34162266,0.00018383,2]
[368732203,1751334640641,-460.0,0.00018383,2]
[368732204,1751334640651,-460.0,0.00018383,2]
[368732205,1751334640662,-460.0,0.00018383,2]
[368732206,1751334640671,-460.0,0.00018383,2]
[368732207,1751334640681,-460.0,0.00018383,2]
[368732208,1751334640691,-460.0,0.00018383,2]
[368732209,1751334640701,-460.0,0.00018383,2]
[368732210,1751334640711,-461.90550623,0.00018383,2]
[368732211,1751334640721,-460.0,0.00018383,2]
[368732212,1751334640732,-460.0,0.00018383,2]
[368732213,1751334640742,-462.54017521,0.00018383,2]
[368732214,1751334640752,-460.0,0.00018383,2]
[368732215,1751334640762,-460.0,0.00018383,2]
[368732216,1751334640772,-460.0,0.00018383,2]
[368732217,1751334640781,-460.0,0.00018383,2]
[368732218,1751334640791,-460.0,0.00018383,2]
[368732219,1751334640801,-460.0,0.00018383,2]
[368732220,1751334640810,-460.0,0.00018383,2]
[368732221,1751334640820,-460.0,0.00018383,2]
[368732222,1751334640830,-460.0,0.00018383,2]
[368732223,1751334640839,-461.64707709,0.00018383,2]
[368732224,1751334640849,-460.0,0.00018383,2]
[368732225,1751334640859,-474.7921963,0.00018383,2]
[368732226,1751334640869,-460.0,0.00018383,2]
[368732227,1751334640881,-460.0,0.00018383,2]
[368732228,1751334640890,-462.93383519,0.00018383,2]
[368732229,1751334640900,-460.0,0.00018383,2]
[368732230,1751334640911,-460.0,0.00018383,2]
[368732231,1751334640921,-460.0,0.00018383,2]
[368732232,1751334640931,-307.70174023,0.00018383,2]
[368732233,1751334640940,-462.86962184,0.00018383,2]
[368732234,1751334640952,-460.0,0.00018383,2]
[368732235,1751334640962,-460.0,0.00018383,2]
[368732236,1751334640971,-460.0,0.00018383,2]
[368732237,1751334640981,-460.0,0.00018383,2]
[368732238,1751334640990,-460.0,0.00018383,2]
[368732239,1751334641000,-429.09656256,0.00018383,2]
[368732240,1751334641011,-460.0,0.00018383,2]
[368732241,1751334641021,-460.0,0.00018383,2]
[368732242,1751334641031,-460.0,0.00018383,2]
[368732243,1751334641041,-460.0,0.00018383,2]
[368732244,1751334641051,-460.0,0.00018383,2]
[368732245,1751334641060,-460.0,0.00018383,2]
[368732246,1751334641069,-460.0,0.00018383,2]
[368732247,1751334641078,-500.0,0.00018383,2]
[368732248,1751334641088,-460.0,0.00018383,2]
[368732249,1751334641097,-460.0,0.00018383,2]
[368732250,1751334641106,-460.0,0.00018383,2]
[368732251,1751334641116,-460.0,0.00018383,2]
[368732252,1751334641126,-460.0,0.00018383,2]
[368732253,1751334641135,-460.0,0.00018383,2]
[368732254,1751334641146,-460.0,0.00018383,2]
[368732255,1751334641155,-460.0,0.00018383,2]
[368732256,1751334641165,-460.0,0.00018383,2]
[368732257,1751334641175,-342.63069992,0.00018383,2]
[368732258,1751334641186,-464.42096146,0.00018383,2]
[368732259,1751334641198,-460.0,0.00018383,2]
[368732260,1751334641207,-460.0,0.00018383,2]
[368732261,1751334641217,-460.0,0.00018383,2]
[368732262,1751334641228,-460.0,0.00018383,2]
[368732263,1751334641237,-460.0,0.00018383,2]
[368732264,1751334641246,-460.0,0.00018383,2]
[368732265,1751334641256,-460.0,0.00018383,2]
[368732266,1751334641265,-1391.17,0.00018383,2]
[368732267,1751334641274,-460.0,0.00018383,2]
[368732268,1751334641283,-460.0,0.00018383,2]
[368732269,1751334641293,-460.0,0.00018383,2]
[368732270,1751334641302,-460.0,0.00018383,2]
[368732271,1751334641312,-460.0,0.00018383,2]
[368732272,1751334641321,-460.0,0.00018383,2]
[368732273,1751334641330,-460.0,0.00018383,2]
[368732274,1751334641339,-406.72927909,0.00018383,2]
[368732275,1751334641347,-460.0,0.00018383,2]
[368732276,1751334641356,-460.0,0.00018383,2]
[368732277,1751334641365,-460.0,0.00018383,2]
[368732278,1751334641374,-1207.15,0.00018383,2]
[368732279,1751334641383,-460.0,0.00018383,2]
[368732280,1751334641392,-460.0,0.00018383,2]
[368732281,1751334641402,-460.0,0.00018383,2]
[368732282,1751334641412,-598.89528059,0.00018383,2]
[368732283,1751334641421,-460.0,0.00018383,2]
[368732284,1751334641431,-460.0,0.00018383,2]
[368732285,1751334641441,-460.0,0.00018383,2]
[368732286,1751334641451,-460.0,0.00018383,2]
[368732287,1751334641461,-460.0,0.00018383,2]
[368732288,1751334641470,-462.45976577,0.00018383,2]
[368732289,1751334641480,-2516.07,0.00018383,2]
[368732290,1751334641490,-463.66585343,0.00018383,2]
[368732291,1751334641500,-905.63,0.00018383,2]
[368732292,1751334641510,-460.0,0.00018383,2]
[368732293,1751334641519,-460.0,0.00018384,2]
[368732294,1751334641531,-460.0,0.00018384,2]
[368732295,1751334641541,-460.0,0.00018384,2]
[368732296,1751334641551,-460.0,0.00018384,2]
[368732297,1751334641560,-460.0,0.00018384,2]
[368732298,1751334641570,-460.0,0.00018384,2]
[368732299,1751334641579,-460.0,0.00018384,2]
[368732300,1751334641589,-460.0,0.00018384,2]
[368732301,1751334641599,-503.82298131,0.00018384,2]
[368732302,1751334641609,-460.0,0.00018384,2]
[368732303,1751334641618,-461.5088772,0.00018384,2]
[368732304,1751334641628,-460.0,0.00018384,2]
[368732305,1751334641638,-460.0,0.00018384,2]
[368732306,1751334641648,-460.0,0.00018384,2]
[368732307,1751334641657,-460.0,0.00018384,2]
[368732308,1751334641667,-460.0,0.00018384,2]
[368732309,1751334641677,-444.79547571,0.00018384,2]
[368732310,1751334641687,-500.0,0.00018384,2]
[368732311,1751334641697,-460.0,0.00018384,2]
[368732312,1751334641706,-460.0,0.00018384,2]
[368732313,1751334641716,-461.95759357,0.00018384,2]
[368732314,1751334641725,-460.0,0.00018384,2]
[368732315,1751334641735,-460.0,0.00018384,2]
[368732316,1751334641745,-460.0,0.00018384,2]
[368732317,1751334641755,-529.01966624,0.00018384,2]
[368732318,1751334641766,-460.0,0.00018384,2]
[368732319,1751334641775,-461.82389495,0.00018384,2]
[368732320,1751334641785,-460.0,0.00018384,2]
[368732321,1751334641795,-461.51866639,0.00018384,2]
[368732322,1751334641805,-462.54361352,0.00018384,2]
[368732323,1751334641815,-460.0,0.00018384,2]
[368732324,1751334641824,-460.0,0.00018384,2]
[368732325,1751334641834,-460.0,0.00018384,2]
[368732326,1751334641844,-460.0,0.00018384,2]
[368732327,1751334641853,-460.0,0.00018384,2]
[368732328,1751334641863,-460.0,0.00018384,2]
[368732329,1751334641874,-462.13596083,0.00018384,2]
[368732330,1751334641885,-463.42634983,0.00018384,2]
[368732331,1751334641894,-460.0,0.00018384,2]
[368732332,1751334641904,-460.0,0.00018384,2]
[368732333,1751334641914,-431.06111639,0.00018384,2]
[368732334,1751334641924,-460.0,0.00018384,2]
[368732335,1751334641934,-460.0,0.00018384,2]
[368732336,1751334641944,-460.0,0.00018493,2]
[368732337,1751334641954,-460.0,0.00018493,2]
[368732338,1751334641964,-460.0,0.00018554,2]
[368732339,1751334641973,-460.0,0.00018554,2]
[368732340,1751334641983,-460.0,0.00018554,2]
[368732341,1751334641992,-460.0,0.00018554,2]
[368732342,1751334642003,-460.9082863,0.00018555,2]
[368732343,1751334642013,-460.0,0.00018555,2]
[368732344,1751334642023,-460.0,0.00018555,2]
[368732345,1751334642032,-460.0,0.00018555,2]
[368732346,1751334642042,-1010.40171051,0.00018555,2]
[368732347,1751334642052,-460.0,0.00018555,2]
[368732348,1751334642062,-460.0,0.00018555,2]
[368732349,1751334642072,-460.0,0.00018555,2]
[368732350,1751334642081,-461.19524361,0.00018555,2]
[368732351,1751334642091,-460.0,0.00018555,2]
[368732352,1751334642100,-436.38572518,0.00018555,2]
[368732353,1751334642110,-460.0,0.00018555,2]
[368732354,1751334642119,-329.07869915,0.00018555,2]
[368732355,1751334642129,-460.0,0.00018555,2]
[368732356,1751334642138,-460.0,0.00018555,2]
[368732357,1751334642148,-460.0,0.00018555,2]
[368732358,1751334642157,-460.0,0.00018555,2]
[368732359,1751334642167,-460.0,0.00018555,2]
[368732360,1751334642176,-460.0,0.00018555,2]
[368732361,1751334642186,-460.0,0.00018555,2]
[368732362,1751334642195,-460.0,0.00018555,2]
[368732363,1751334642205,-460.0,0.00018555,2]
[368732364,1751334642214,-460.0,0.00018555,2]
[368732365,1751334642224,-460.0,0.00018555,2]
[368732366,1751334642233,-460.0,0.00018555,2]
[368732367,1751334642243,-460.0,0.00018555,2]
[368732368,1751334642253,-460.0,0.00018555,2]
[368732369,1751334642262,-460.0,0.00018555,2]
[368732370,1751334642272,-461.27806709,0.00018555,2]
[368732371,1751334642281,-460.0,0.00018555,2]
[368732372,1751334642291,-460.0,0.00018555,2]
[368732373,1751334642301,-460.0,0.00018555,2]
[368732374,1751334642310,-460.0,0.00018555,2]
[368732375,1751334642320,-920.78,0.00018555,2]
[368732376,1751334642329,-460.0,0.00018555,2]
[368732377,1751334642339,-460.0,0.00018555,2]
[368732378,1751334642349,-460.0,0.00018555,2]
[368732379,1751334642360,-460.0,0.00018555,2]
[368732380,1751334642371,-460.0,0.00018555,2]
[368732381,1751334642382,-332.82170148,0.00018555,2]
[368732382,1751334642393,-465.35093492,0.00018555,2]
[368732383,1751334642403,-461.69823213,0.00018555,2]
[368732384,1751334642412,-538.56020802,0.00018555,2]
[368732386,1751334642422,-462.60986125,0.00018555,2]
[368732391,1751334642532,-463.68415675,0.00018555,2]
[368732392,1751334642542,-460.0,0.00018555,2]
[368732393,1751334642552,-460.0,0.00018555,2]
[368732394,1751334642562,-717.39,0.00018555,2]
[368732395,1751334642572,-460.0,0.00018555,2]
[368732396,1751334642583,-460.0,0.00018555,2]
[368732397,1751334642593,-460.0,0.00018555,2]
[368732398,1751334642603,-460.0,0.00018555,2]
[368732399,1751334642613,-462.15068397,0.00018555,2]
[368732400,1751334642623,-465.87601844,0.00018556,2]
[368732401,1751334642632,-463.53623899,0.00018556,2]
[368732402,1751334642641,-464.65583424,0.00018556,2]
[368732403,1751334642651,-460.0,0.00018556,2]
[368732404,1751334642660,-460.0,0.00018556,2]
[368732405,1751334642670,-247.10801659,0.00018556,2]
[368732406,1751334642679,-448.195291,0.00018556,2]
[368732407,1751334642688,-460.0,0.00018556,2]
[368732408,1751334642698,-460.0,0.00018556,2]
[368732409,1751334642707,-460.0,0.00018556,2]
[368732410,1751334642717,-460.0,0.00018556,2]
[368732411,1751334642727,-1641.85,0.00018556,2]
[368732412,1751334642737,-460.0,0.00018556,2]
[368732413,1751334642746,-460.0,0.00018556,2]
[368732415,1751334642756,-460.0,0.00018556,2]
[368732417,1751334642766,-460.0,0.00018556,2]
[368732419,1751334642781,-1646.18,0.00018556,2]
[368732421,1751334642790,-460.0,0.00018556,2]
[368732423,1751334642800,-460.0,0.00018556,2]
[368732425,1751334642810,-465.84739765,0.00018556,2]
[368732427,1751334642820,-468.66033963,0.00018556,2]
[368732429,1751334642829,-1385.16,0.00018556,2]
[368732431,1751334642839,-462.85229283,0.00018556,2]
[368732433,1751334642849,-2055.78,0.00018556,2]
[368732435,1751334642858,-460.0,0.00018556,2]
[368732438,1751334642869,-460.0,0.00018556,2]
[368732440,1751334642881,-467.66970938,0.00018556,2]
[368732442,1751334642891,-510.77,0.00018556,2]
[368732443,1751334642900,-460.0,0.00018556,2]
[368732446,1751334642912,-460.0,0.00018556,2]
[368732448,1751334642923,-865.56,0.00018556,2]
[368732450,1751334642933,-460.0,0.00018556,2]
[368732452,1751334642942,-460.0,0.00018556,2]
[368732454,1751334642953,-460.0,0.00018556,2]
[368732456,1751334642962,-460.0,0.00018556,2]
[368732458,1751334642972,-460.0,0.00018556,2]
[368732460,1751334642982,-460.0,0.00018556,2]
[368732462,1751334642992,-460.0,0.00018556,2]
[368732464,1751334643002,-460.0,0.00018556,2]
[368732465,1751334643012,-460.0,0.00018557,2]
[368732466,1751334643021,-460.0,0.00018557,2]
[368732467,1751334643031,-460.0,0.00018557,2]
[368732468,1751334643040,-460.0,0.00018557,2]
[368732469,1751334643050,-460.0,0.00018557,2]
[368732470,1751334643061,-460.0,0.00018557,2]
[368732471,1751334643071,-460.0,0.00018557,2]
[368732472,1751334643081,-460.0,0.00018557,2]
[368732473,1751334643091,-460.0,0.00018557,2]
[368732474,1751334643101,-460.0,0.00018557,2]
[368732475,1751334643110,-460.0,0.00018557,2]
[368732476,1751334643120,-460.0,0.00018557,2]
[368732477,1751334643129,-465.1298246,0.00018557,2]
[368732478,1751334643139,-283.2265961,0.00018557,2]
[368732479,1751334643149,-460.0,0.00018557,2]
[368732480,1751334643159,-460.0,0.00018557,2]
[368732481,1751334643168,-460.0,0.00018557,2]
[368732482,1751334643178,-460.0,0.00018557,2]
[368732483,1751334643188,-460.0,0.00018557,2]
[368732484,1751334643197,-460.0,0.00018557,2]
[368732485,1751334643207,-460.0,0.00018557,2]
[368732486,1751334643216,-460.0,0.00018557,2]
[368732487,1751334643226,-460.0,0.00018557,2]
[368732488,1751334643236,-460.0,0.00018557,2]
[368732489,1751334643245,-460.0,0.00018557,2]
[368732490,1751334643255,-460.0,0.00018557,2]
[368732491,1751334643264,-460.0,0.00018557,2]
[368732492,1751334643274,-460.0,0.00018557,2]
[368732493,1751334643283,-460.0,0.00018557,2]
[368732494,1751334643293,-460.0,0.00018557,2]
[368732495,1751334643303,-460.0,0.00018557,2]
[368732496,1751334643312,-460.0,0.00018557,2]
[368732497,1751334643321,-460.0,0.00018557,2]
[368732498,1751334643331,-460.0,0.00018557,2]
[368732499,1751334643341,-464.4470707,0.00018557,2]
[368732500,1751334643351,-460.0,0.00018557,2]
[368732501,1751334643361,-606.61,0.00018557,2]
[368732502,1751334643371,-232.33,0.00018557,2]
[368732503,1751334643381,-463.37519806,0.00018557,2]
[368732504,1751334643390,-460.0,0.00018557,2]
[368732505,1751334643400,-460.0,0.00018557,2]
[368732506,1751334643409,-460.0,0.00018557,2]
[368732507,1751334643419,-511.50957936,0.00018557,2]
[368732508,1751334643428,-460.0,0.00018557,2]
[368732509,1751334643438,-460.0,0.00018557,2]
[368732510,1751334643449,-460.0,0.00018557,2]
[368732511,1751334643459,-460.0,0.00018557,2]
[368732512,1751334643468,-460.0,0.00018557,2]
[368732513,1751334643479,-598.48925578,0.00018557,2]
[368732514,1751334643489,-461.88585755,0.00018557,2]
[368732515,1751334643499,-460.0,0.00018557,2]
[368732516,1751334643509,-460.0,0.00018557,2]
[368732517,1751334643519,-460.0,0.00018557,2]
[368732518,1751334643528,-460.0,0.00018557,2]
[368732519,1751334643538,-460.0,0.00018557,2]
[368732520,1751334643552,-463.5886585,0.00018557,2]
[368732521,1751334643562,-1452.89,0.00018557,2]
[368732522,1751334643571,-460.0,0.00018557,2]
[368732523,1751334643581,-460.0,0.00018557,2]
[368732524,1751334643591,-460.0,0.00018557,2]
[368732525,1751334643600,-460.0,0.00018557,2]
[368732526,1751334643610,-460.0,0.00018557,2]
[368732527,1751334643620,-460.0,0.00018557,2]
[368732528,1751334643630,-460.0,0.00018557,2]
[368732529,1751334643640,-465.616995,0.00018557,2]
[368732530,1751334643649,-460.0,0.00018557,2]
[368732531,1751334643658,-460.0,0.00018557,2]
[368732532,1751334643667,-460.0,0.00018557,2]
[368732533,1751334643677,-460.0,0.00018557,2]
[368732534,1751334643686,-2680.89,0.00018557,2]
[368732535,1751334643696,-232.24930353,0.00018557,2]
[368732536,1751334643706,-460.0,0.00018557,2]
[368732537,1751334643716,-466.43802989,0.00018557,2]
[368732538,1751334643726,-460.0,0.00018557,2]
[368732539,1751334643736,-483.91275538,0.00018557,2]
[368732540,1751334643745,-460.0,0.00018557,2]
[368732541,1751334643754,-460.0,0.00018557,2]
[368732542,1751334643764,-594.27,0.00018557,2]
[368732543,1751334643774,-460.0,0.00018557,2]
[368732544,1751334643783,-460.0,0.00018557,2]
[368732545,1751334643794,-460.0,0.00018557,2]
[368732546,1751334643804,-528.77,0.00018557,2]
[368732547,1751334643813,-466.82541607,0.00018557,2]
[368732548,1751334643823,-630.97,0.00018557,2]
[368732549,1751334643832,-460.0,0.00018557,2]
[368732550,1751334643842,-460.0,0.00018557,2]
[368732551,1751334643851,-460.0,0.00018557,2]
[368732552,1751334643863,-460.0,0.00018557,2]
[368732553,1751334643873,-460.0,0.00018557,2]
[368732554,1751334643883,-460.0,0.00018557,2]
[368732555,1751334643893,-460.0,0.00018557,2]
[368732556,1751334643903,-460.0,0.00018557,2]
[368732557,1751334643913,-460.0,0.00018557,2]
[368732558,1751334643923,-782.43,0.00018557,2]
[368732559,1751334643934,-460.0,0.00018557,2]
[368732560,1751334643945,-460.0,0.00018557,2]
[368732561,1751334643956,-468.65283836,0.00018557,2]
[368732562,1751334643966,-586.1880735,0.00018557,2]
[368732563,1751334643976,-843.5581848,0.00018592,2]
[368732564,1751334643985,-2205.97016843,0.000186,2]
[368732565,1751334643995,-460.0,0.00018647,2]
[368732566,1751334644005,-460.0,0.00018647,2]
[368732567,1751334644015,-460.0,0.00018647,2]
[368732568,1751334644025,-463.75842511,0.00018647,2]
[368732569,1751334644037,-460.0,0.00018647,2]
[368732570,1751334644048,-460.0,0.00018647,2]
[368732571,1751334644058,-460.0,0.00018647,2]
[368732572,1751334644069,-460.0,0.00018647,2]
[368732573,1751334644079,-460.0,0.00018647,2]
[368732574,1751334644089,-461.866477,0.00018647,2]
[368732575,1751334644100,-460.0,0.00018647,2]
[368732576,1751334644111,-460.0,0.00018647,2]
[368732577,1751334644121,-460.0,0.00018647,2]
[368732578,1751334644131,-461.27021462,0.00018647,2]
[368732579,1751334644140,-460.9994328,0.00018647,2]
[368732580,1751334644150,-460.0,0.00018647,2]
[368732581,1751334644160,-460.0,0.00018647,2]
[368732582,1751334644170,-460.0,0.00018647,2]
[368732583,1751334644180,-461.33319047,0.00018647,2]
[368732584,1751334644190,-151.03613813,0.00018647,2]
[368732585,1751334644200,-460.0,0.00018647,2]
[368732586,1751334644210,-460.0,0.00018647,2]
[368732587,1751334644220,-201.46039398,0.00018647,2]
[368732588,1751334644229,-460.0,0.00018647,2]
[368732589,1751334644240,-460.0,0.00018647,2]
[368732590,1751334644251,-162.70913054,0.00018647,2]
[368732591,1751334644260,-460.0,0.00018647,2]
[368732592,1751334644270,-460.0,0.00018647,2]
[368732593,1751334644280,-460.0,0.00018647,2]
[368732594,1751334644290,-460.0,0.00018647,2]
[368732595,1751334644300,-460.0,0.00018647,2]
[368732596,1751334644309,-460.0,0.00018656,2]
[368732597,1751334644320,-465.67122023,0.00018657,2]
[368732598,1751334644331,-467.5641257,0.00018657,2]
[368732599,1751334644341,-460.0,0.00018657,2]
[368732600,1751334644351,-460.0,0.00018657,2]
[368732601,1751334644362,-460.0,0.00018657,2]
[368732602,1751334644372,-560.39296965,0.00018657,2]
[368732603,1751334644382,-608.30692483,0.00018657,2]
[368732604,1751334644492,-461.90614744,0.00018657,2]
[368732605,1751334644516,-462.92034885,0.00018657,2]
[368732606,1751334644527,-462.11151697,0.00018657,2]
[368732607,1751334644538,-460.0,0.00018657,2]
[368732608,1751334644548,-460.0,0.00018657,2]
[368732609,1751334644558,-460.0,0.00018657,2]
[368732610,1751334644568,-460.0,0.00018657,2]
[368732611,1751334644578,-460.0,0.00018657,2]
[368732612,1751334644589,-460.0,0.00018657,2]
[368732613,1751334644600,-460.0,0.00018657,2]
[368732614,1751334644611,-460.0,0.00018657,2]
[368732615,1751334644621,-460.0,0.00018657,2]
[368732616,1751334644632,-460.0,0.00018657,2]
[368732617,1751334644642,-460.0,0.00018657,2]
[368732618,1751334644652,-460.0,0.00018657,2]
[368732619,1751334644662,-460.0,0.00018657,2]
[368732620,1751334644672,-572.1304305,0.00018657,2]
[368732621,1751334644682,-460.0,0.00018657,2]
[368732622,1751334644692,-460.0,0.00018657,2]
[368732623,1751334644702,-460.0,0.00018657,2]
[368732624,1751334644712,-460.0,0.00018657,2]
[368732625,1751334644722,-460.0,0.00018657,2]
[368732626,1751334644731,-460.0,0.00018657,2]
[368732627,1751334644742,-460.0,0.00018657,2]
[368732628,1751334644752,-463.69316653,0.00018657,2]
[368732629,1751334644761,-460.0,0.00018657,2]
[368732630,1751334644771,-460.0,0.00018657,2]
[368732631,1751334644781,-460.0,0.00018657,2]
[368732632,1751334644790,-460.0,0.00018657,2]
[368732633,1751334644800,-460.0,0.00018657,2]
[368732634,1751334644809,-460.0,0.00018657,2]
[368732635,1751334644818,-460.0,0.00018657,2]
[368732636,1751334644828,-460.0,0.00018657,2]
[368732637,1751334644838,-460.0,0.00018657,2]
[368732638,1751334644849,-460.0,0.00018657,2]
[368732639,1751334644860,-460.0,0.00018657,2]
[368732640,1751334644870,-460.0,0.00018657,2]
[368732641,1751334644883,-460.0,0.00018657,2]
[368732642,1751334644894,-460.0,0.00018657,2]
[368732643,1751334644904,-460.0,0.00018657,2]
[368732644,1751334644913,-460.0,0.00018657,2]
[368732645,1751334644923,-460.0,0.00018657,2]
[368732646,1751334644932,-380.33304638,0.00018657,2]
[368732647,1751334644942,-460.0,0.00018657,2]
[368732648,1751334644954,-464.97585467,0.00018657,2]
[368732649,1751334644965,-460.0,0.00018657,2]
[368732650,1751334644975,-460.0,0.00018657,2]
[368732651,1751334644985,-506.64084193,0.00018657,2]
[368732652,1751334644996,-460.0,0.00018657,2]
[368732653,1751334645006,-460.0,0.00018657,2]
[368732654,1751334645016,-460.0,0.00018657,2]
[368732655,1751334645028,-460.0,0.00018657,2]
[368732656,1751334645039,-460.0,0.00018657,2]
[368732657,1751334645048,-460.0,0.00018657,2]
[368732658,1751334645058,-460.0,0.00018657,2]
[368732659,1751334645068,-460.0,0.00018657,2]
[368732660,1751334645077,-460.0,0.00018657,2]
[368732661,1751334645086,-460.0,0.00018657,2]
[368732662,1751334645096,-368.02619584,0.00018657,2]
[368732663,1751334645105,-471.17971462,0.00018657,2]
[368732664,1751334645114,-460.0,0.00018657,2]
[368732665,1751334645123,-460.0,0.00018657,2]
[368732666,1751334645132,-460.0,0.00018657,2]
[368732667,1751334645142,-1391.17,0.00018657,2]
[368732668,1751334645151,-464.80009133,0.00018657,2]
[368732669,1751334645162,-460.0,0.00018657,2]
[368732670,1751334645171,-460.0,0.00018657,2]
[368732671,1751334645181,-460.0,0.00018657,2]
[368732672,1751334645190,-460.0,0.00018657,2]
[368732673,1751334645200,-460.0,0.00018657,2]
[368732675,1751334645209,-472.75375714,0.00018657,2]
[368732676,1751334645219,-460.0,0.00018657,2]
[368732677,1751334645228,-460.0,0.00018657,2]
[368732678,1751334645237,-460.0,0.00018657,2]
[368732679,1751334645246,-1207.15,0.00018657,2]
[368732680,1751334645256,-460.0,0.00018657,2]
[368732681,1751334645265,-460.0,0.00018657,2]
[368732682,1751334645273,-460.0,0.00018657,2]
[368732683,1751334645282,-460.0,0.00018657,2]
[368732684,1751334645291,-460.0,0.00018657,2]
[368732685,1751334645301,-460.0,0.00018657,2]
[368732686,1751334645311,-460.0,0.00018657,2]